bitfinex-derivatives/quotes_SOLF0:USTF0_20250328
["timestamp","ask_amount","ask_price","bid_price","bid_amount"]
[1743177481845,0.0516461,129.9,129.89,7.7025]
[1743177482451,0.0516461,129.9,129.87,29.43882963]
[1743177484151,0.0516461,129.9,129.89,7.7025]
[1743177486457,22.39336166,129.9,129.87,0.05882963]
[1743177486650,22.34171556,129.88,129.8,1.9795]
[1743177486855,22.34171556,129.86,129.81,31.5222]
[1743177487053,22.34171556,129.86,129.82,7.7063]
[1743177487252,22.34171556,129.86,129.81,31.5222]
[1743177487460,22.34171556,129.86,129.81,29.5]
[1743177487660,7.7051,129.85,129.81,37.2072]
[1743177487851,0.05551689,129.85,129.82,0.04907571]
[1743177488255,22.34171556,129.89,129.82,0.04907571]
[1743177488455,22.34171556,129.91,129.82,2.19097571]
[1743177488759,22.34171556,129.91,129.82,2.1419]
[1743177488958,7.7019,129.9,129.85,7.7045]
[1743177489157,7.7019,129.9,129.85,37.1645]
[1743177489460,0.05650763,129.89,129.86,0.05812057]
[1743177490058,22.34171556,129.87,129.86,0.05812057]
[1743177490470,30.04541556,129.87,129.86,0.05812057]
[1743177490862,38.46466298,129.87,129.86,0.05812057]
[1743177491559,7.7059,129.84,129.8,7.7075]
[1743177491759,30.76096298,129.85,129.78,2.0402]
[1743177491965,30.76096298,129.85,129.79,29.38]
[1743177492166,7.7057,129.84,129.79,29.38]
[1743177492669,7.7057,129.84,129.8,7.7075]
[1743177492859,0.05608936,129.83,129.8,0.0514561]
[1743177493368,0.05608936,129.83,129.81,7.7069]
[1743177496767,7.76228936,129.83,129.8,7.7590561]
[1743177497067,7.76228936,129.83,129.8,0.0514561]
[1743177497267,7.76228936,129.83,129.8,7.7589561]
[1743177497866,7.76228936,129.83,129.81,7.7072]
[1743177498167,7.76228936,129.83,129.8,0.0514561]
[1743177498368,7.76228936,129.83,129.8,7.7589561]
[1743177498972,0.05608936,129.83,129.8,0.0514561]
[1743177499569,1.9429,129.91,129.8,32.82551908]
[1743177499769,7.7027,129.89,129.8,32.77406298]
[1743177499968,1.9429,129.91,129.82,30.76096298]
[1743177500170,1.9429,129.91,129.83,29.22]
[1743177500474,7.7028,129.89,129.83,29.22]
[1743177500663,0.05849496,129.88,129.86,7.75411738]
[1743177500863,0.05849496,129.88,129.86,36.99411738]
[1743177501064,0.05849496,129.88,129.86,0.05011738]
[1743177501264,30.81945794,129.88,129.86,0.05011738]
[1743177501672,38.52305794,129.88,129.86,0.05011738]
[1743177501869,30.81945794,129.88,129.86,0.05011738]
[1743177502173,7.7037,129.87,129.86,0.05011738]
[1743177504472,7.76189496,129.88,129.86,0.05011738]
[1743177504972,7.76189496,129.88,129.86,7.75431738]
[1743177505167,0.05849496,129.88,129.86,7.75431738]
[1743177505377,0.05849496,129.88,129.87,7.7037]
[1743177505777,0.05849496,129.88,129.86,29.63011738]
[1743177505978,0.05849496,129.88,129.86,37.33401738]
[1743177506777,0.05849496,129.88,129.86,29.63011738]
[1743177507280,7.76189496,129.88,129.86,29.63011738]
[1743177507779,7.76189496,129.88,129.86,0.05011738]
[1743177509582,7.76189496,129.88,129.86,0.05011738]
[1743177510886,0.05849496,129.88,129.86,0.05011738]
[1743177511390,7.7037,129.87,129.86,0.05011738]
[1743177512584,0.05849496,129.88,129.86,0.05011738]
[1743177512879,0.05849496,129.88,129.86,7.75401738]
[1743177514380,7.76159496,129.88,129.86,0.05011738]
[1743177516997,0.05849496,129.88,129.86,7.75431738]
[1743177518298,7.76169496,129.88,129.86,7.75431738]
[1743177519700,7.76169496,129.88,129.86,0.05011738]
[1743177520194,7.7037,129.87,129.86,0.05011738]
[1743177520395,0.05849496,129.88,129.83,29.38]
[1743177520602,21.15485896,129.91,129.83,29.38]
[1743177520801,7.7033,129.88,129.83,48.59195896]
[1743177521000,21.15485896,129.91,129.83,29.38]
[1743177521305,7.7028,129.89,129.86,7.7042]
[1743177521504,0.05147822,129.88,129.87,29.38]
[1743177522602,2.1038,129.93,129.87,29.38]
[1743177522603,21.31575896,129.93,129.87,29.38]
[1743177522799,19.21195896,129.93,129.87,29.38]
[1743177522992,7.7022,129.9,129.87,37.0832]
[1743177523394,7.7022,129.9,129.87,29.38]
[1743177523800,7.7575202,129.9,129.87,29.43019586]
[1743177524002,0.0553202,129.9,129.88,7.7028]
[1743177524201,0.0553202,129.9,129.87,29.43019586]
[1743177525407,0.0553202,129.9,129.89,7.7025]
[1743177526299,19.21195896,129.93,129.87,0.05019586]
[1743177526498,7.7016,129.91,129.88,29.24]
[1743177526692,19.21195896,129.93,129.88,29.24]
[1743177526896,19.21195896,129.91,129.88,29.24]
[1743177527104,7.7025,129.89,129.88,29.24]
[1743177528702,7.7025,129.89,129.87,29.24934711]
[1743177529000,7.7025,129.89,129.87,36.95284711]
[1743177530005,7.7025,129.89,129.87,29.24934711]
[1743177530304,0.05744212,129.9,129.87,29.24934711]
[1743177530505,0.05744212,129.9,129.87,36.95264711]
[1743177530704,7.75974212,129.9,129.87,29.24934711]
[1743177531105,7.75974212,129.9,129.87,36.95254711]
[1743177531407,7.75974212,129.9,129.87,29.24934711]
[1743177531707,7.75974212,129.9,129.87,36.95264711]
[1743177532407,7.75974212,129.9,129.88,7.7029]
[1743177532603,0.05744212,129.9,129.87,29.24934711]
[1743177533109,0.05744212,129.9,129.89,7.7025]
[1743177534209,2.1426,129.95,129.91,7.7011]
[1743177534409,2.1426,129.95,129.91,29.22]
[1743177534607,19.21195896,129.98,129.94,7.6994]
[1743177534812,19.21195896,130.0,129.94,29.22]
[1743177535204,7.74950108,129.98,129.96,0.05039957]
[1743177536007,0.05190108,129.98,129.96,0.05039957]
[1743177536809,7.74950108,129.98,129.96,0.05039957]
[1743177538612,0.05190108,129.98,129.96,7.74839957]
[1743177538815,0.05190108,129.98,129.97,29.38]
[1743177539716,0.05190108,129.98,129.97,37.0777]
[1743177540317,7.6951,130.02,129.99,7.6961]
[1743177540519,7.6951,130.02,130.0,29.34]
[1743177541420,21.24075896,130.04,130.0,29.34]
[1743177541619,0.05131038,130.02,130.0,29.39352616]
[1743177542015,7.74611038,130.02,130.0,29.39352616]
[1743177542821,0.05131038,130.02,130.0,37.08932616]
[1743177543715,0.05131038,130.02,130.01,7.6954]
[1743177544018,0.05131038,130.02,130.0,29.39352616]
[1743177544420,0.05131038,130.02,130.0,37.08922616]
[1743177544615,0.05131038,130.02,130.0,29.39352616]
[1743177545217,0.05131038,130.02,130.01,7.6954]
[1743177545418,0.05131038,130.02,130.0,29.39352616]
[1743177545919,0.05131038,130.02,130.01,7.6954]
[1743177546819,0.05131038,130.02,130.0,37.08912616]
[1743177548121,7.74611038,130.02,130.0,37.08912616]
[1743177549222,0.05131038,130.02,130.0,37.08912616]
[1743177550023,21.17335896,130.08,130.0,48.60548512]
[1743177550214,21.17335896,130.08,130.0,48.55195896]
[1743177550714,7.6928,130.06,130.02,7.6943]
[1743177550921,21.17335896,130.08,130.03,29.44]
[1743177551219,0.05799211,130.05,130.03,29.49257736]
[1743177551609,0.05799211,130.05,130.03,37.18677736]
[1743177552315,0.05799211,130.05,130.04,7.6936]
[1743177552619,0.05799211,130.05,130.03,29.49257736]
[1743177553221,0.05799211,130.05,130.04,7.6936]
[1743177554020,0.05799211,130.05,130.03,29.49257736]
[1743177555123,0.05799211,130.05,130.03,37.18637736]
[1743177556722,0.05799211,130.05,130.04,7.6936]
[1743177557423,0.05799211,130.05,130.03,37.18647736]
[1743177558231,0.05799211,130.05,130.04,7.6936]
[1743177563328,0.05799211,130.05,130.03,29.49257736]
[1743177564031,7.6936,130.04,130.03,29.49257736]
[1743177564224,0.05799211,130.05,130.03,29.49257736]
[1743177564630,7.75139211,130.05,130.03,29.49257736]
[1743177564825,14.30993917,130.04,130.03,29.49257736]
[1743177565236,22.00353917,130.04,130.03,0.05257736]
[1743177566423,7.6954,130.01,129.98,14.30993917]
[1743177566730,14.30993917,130.02,129.99,29.32]
[1743177567039,14.30993917,130.02,129.96,671.92]
[1743177567040,19.1726896,130.02,129.96,671.92]
[1743177567337,19.1726896,130.02,129.97,29.3]
[1743177567538,19.1726896,130.02,129.97,36.9975]
[1743177567539,7.697,129.99,129.97,36.9975]
[1743177567730,7.697,129.99,129.98,0.05905698]
[1743177568535,0.05745655,130.01,129.98,0.05905698]
[1743177568536,7.6962,130.0,129.98,0.05905698]
[1743177568736,7.6962,130.0,129.98,7.75605698]
[1743177568937,0.05745655,130.01,129.98,0.05905698]
[1743177569136,7.6963,130.0,129.98,0.05905698]
[1743177569542,7.6963,130.0,129.98,7.75615698]
[1743177572749,7.696,130.0,129.98,0.05905698]
[1743177573928,7.6965,129.99,129.98,0.05905698]
[1743177574134,19.1726896,130.0,129.9,272.9926896]
[1743177574334,19.1726896,129.97,129.91,30.75268001]
[1743177574643,7.6994,129.95,129.91,29.34]
[1743177575341,7.6994,129.95,129.92,7.75533566]
[1743177575342,0.05048457,129.94,129.92,7.75533566]
[1743177575534,0.05048457,129.94,129.92,0.05523566]
[1743177576239,0.05048457,129.94,129.92,29.35523566]
[1743177577243,0.05048457,129.94,129.92,0.05523566]
[1743177577639,7.7001,129.93,129.92,0.05523566]
[1743177579646,0.05048457,129.94,129.92,0.05523566]
[1743177580046,7.75028457,129.94,129.92,0.05523566]
[1743177581135,7.7001,129.93,129.92,0.05523566]
[1743177581339,26.8727896,129.93,129.92,0.05523566]
[1743177583745,7.7016,129.91,129.84,253.9]
[1743177584047,19.1726896,129.91,129.87,7.7033]
[1743177584444,7.7019,129.9,129.87,7.7033]
[1743177585041,7.7025,129.89,129.87,0.05683706]
[1743177585349,19.1726896,129.89,129.87,0.05683706]
[1743177586456,7.7031,129.88,129.87,0.05683706]
[1743177586652,0.05293997,129.9,129.87,0.05683706]
[1743177587262,7.7026,129.89,129.87,0.05683706]
[1743177587553,19.1726896,129.89,129.87,0.05683706]
[1743177587954,2.11603997,129.9,129.87,0.05683706]
[1743177588757,7.7031,129.88,129.87,0.05683706]
[1743177589151,2.11603997,129.9,129.87,0.05683706]
[1743177589451,7.7029,129.89,129.87,0.05683706]
[1743177589653,2.11603997,129.9,129.87,0.05683706]
[1743177589956,7.7031,129.88,129.87,0.05683706]
[1743177590851,20.00033662,129.88,129.87,0.05683706]
[1743177591654,19.99983662,129.89,129.87,0.05683706]
[1743177592357,12.35017659,129.9,129.87,0.05683706]
[1743177592659,0.05293997,129.9,129.88,7.7026]
[1743177593452,0.05293997,129.9,129.87,7.76033706]
[1743177593746,7.75513997,129.9,129.87,0.05683706]
[1743177593947,7.75513997,129.9,129.87,7.76023706]
[1743177595263,7.75513997,129.9,129.87,0.05683706]
[1743177595555,12.29723662,129.88,129.87,0.05683706]
[1743177596655,20.00033662,129.88,129.87,0.05683706]
[1743177598856,7.7031,129.88,129.87,0.05683706]
[1743177601651,7.7027,129.89,129.87,0.05683706]
[1743177603758,7.7027,129.89,129.87,7.76053706]
[1743177604766,0.05293997,129.9,129.87,7.76053706]
[1743177604961,0.05293997,129.9,129.87,0.05683706]
[1743177605462,0.05293997,129.9,129.89,7.7025]
[1743177605654,0.05293997,129.9,129.87,62.05683706]
[1743177605856,2.1088,129.95,129.89,29.88]
[1743177606161,7.6986,129.96,129.89,29.88]
[1743177606360,4.0623,130.0,129.89,29.88]
[1743177606557,4.0623,130.0,129.91,7.7008]
[1743177606757,4.0623,130.0,129.89,29.88]
[1743177607160,0.05826185,129.96,129.93,0.05500635]
[1743177607357,7.701,129.92,129.88,29.84]
[1743177607559,7.701,129.92,129.89,7.7022]
[1743177607864,7.7004,129.93,129.88,29.84]
[1743177608260,1.9743,129.95,129.91,7.701]
[1743177608460,0.04955395,129.92,129.89,0.05308656]
[1743177608762,0.04955395,129.92,129.89,0.05767743]
[1743177609759,0.04955395,129.92,129.9,7.7015]
[1743177609950,7.7019,129.9,129.89,0.05767743]
[1743177610249,0.04955395,129.92,129.89,0.05767743]
[1743177610656,0.04955395,129.92,129.9,29.86]
[1743177610863,31.9948,129.99,129.9,29.86]
[1743177611059,7.7005,129.93,129.9,29.86]
[1743177611864,7.75226508,129.93,129.9,29.90917794]
[1743177612064,7.7008,129.92,129.9,29.90917794]
[1743177612764,7.7013,129.91,129.9,29.90917794]
[1743177613065,0.05176508,129.93,129.9,29.90917794]
[1743177613265,7.7013,129.91,129.9,29.90917794]
[1743177613761,7.7007,129.92,129.9,29.90917794]
[1743177613966,0.05176508,129.93,129.9,29.90917794]
[1743177614467,7.7013,129.91,129.9,29.90917794]
[1743177616666,7.7045,129.86,129.83,2.0081]
[1743177616868,2.0103,129.92,129.83,2.0081]
[1743177617063,19.20751834,129.94,129.85,19.20751834]
[1743177617464,19.20751834,129.92,129.86,7.704]
[1743177617670,19.20751834,129.92,129.86,29.96]
[1743177617865,0.05275565,129.9,129.88,7.7525155]
[1743177619266,0.05275565,129.9,129.89,7.7025]
[1743177619466,0.05275565,129.9,129.89,37.6225]
[1743177620068,0.05275565,129.9,129.89,29.92]
[1743177620664,0.05275565,129.9,129.89,37.6225]
[1743177620874,29.88,130.01,129.89,37.62]
[1743177621069,12.29075062,130.0,129.95,12.29075062]
[1743177621274,7.697,129.99,129.96,7.6982]
[1743177621575,12.29075062,130.0,129.94,42.19075062]
[1743177621776,7.6968,129.99,129.96,7.6978]
[1743177621973,0.05832387,129.98,129.96,7.74917924]
[1743177622480,0.05832387,129.98,129.97,7.6977]
[1743177622780,0.05832387,129.98,129.96,0.05137924]
[1743177622980,0.05832387,129.98,129.96,7.74947924]
[1743177623474,0.05832387,129.98,129.96,0.05137924]
[1743177624882,7.6977,129.97,129.96,0.05137924]
[1743177625287,0.05832387,129.98,129.96,0.05137924]
[1743177625485,7.75572387,129.98,129.96,0.05137924]
[1743177625781,0.05832387,129.98,129.96,0.05137924]
[1743177626982,7.6977,129.97,129.96,0.05137924]
[1743177628478,0.05832387,129.98,129.96,12.34212986]
[1743177628677,0.05832387,129.98,129.97,12.29075062]
[1743177628879,0.05832387,129.98,129.96,0.05137924]
[1743177629179,7.75572387,129.98,129.96,0.05137924]
[1743177629382,0.05832387,129.98,129.96,0.05137924]
[1743177629587,7.75552387,129.98,129.96,7.74957924]
[1743177630083,7.75552387,129.98,129.96,0.05137924]
[1743177630380,7.6977,129.97,129.96,0.05137924]
[1743177630684,19.98845062,129.97,129.96,0.05137924]
[1743177632686,7.6977,129.97,129.96,0.05137924]
[1743177633283,19.98845062,129.97,129.96,0.05137924]
[1743177635192,19.98845062,129.97,129.96,7.924e-05]
[1743177635388,14.23185062,129.97,129.83,441.43791601]
[1743177635685,12.29075062,129.93,129.89,29.54]
[1743177635885,7.7019,129.9,129.89,29.54]
[1743177636086,12.29075062,129.94,129.89,41.83075062]
[1743177636389,7.7006,129.93,129.9,19.99225062]
[1743177636689,0.05445582,129.93,129.9,0.05551343]
[1743177637091,0.05445582,129.93,129.9,12.34626405]
[1743177637278,0.05445582,129.93,129.9,20.04786405]
[1743177637483,7.75485582,129.93,129.9,20.04786405]
[1743177637883,0.05445582,129.93,129.91,19.99185062]
[1743177638385,0.05445582,129.93,129.91,12.29075062]
[1743177638582,0.05445582,129.93,129.91,19.99175062]
[1743177638890,0.05445582,129.93,129.91,7.701]
[1743177639086,0.05445582,129.93,129.9,0.05551343]
[1743177639691,0.05445582,129.93,129.92,7.7007]
[1743177639989,19.19169268,130.02,129.92,29.44]
[1743177640303,48.67169268,130.02,129.94,19.19169268]
[1743177640583,7.698,129.97,129.95,29.46]
[1743177640984,7.6969,129.99,129.95,29.46]
[1743177641183,0.05067656,129.97,129.95,29.51731847]
[1743177641390,19.19169268,130.02,129.95,29.51731847]
[1743177641586,0.05540213,129.97,129.95,29.51731847]
[1743177641781,0.05882483,130.0,129.95,29.51731847]
[1743177642091,7.6981,129.97,129.95,29.51731847]
[1743177642483,7.6983,129.96,129.95,29.51731847]
[1743177642990,0.05305695,129.99,129.95,29.51731847]
[1743177643192,7.698,129.97,129.95,29.51731847]
[1743177644086,7.6983,129.96,129.95,29.51731847]
[1743177645088,7.698,129.97,129.95,29.51731847]
[1743177645392,0.05305695,129.99,129.95,29.51731847]
[1743177645687,7.6983,129.96,129.95,0.05731847]
[1743177646089,7.6979,129.97,129.95,0.05731847]
[1743177646287,0.05305695,129.99,129.95,0.05731847]
[1743177647102,7.6983,129.96,129.95,0.05731847]
[1743177650687,0.05305695,129.99,129.95,0.05731847]
[1743177650893,0.05305695,129.99,129.95,7.75591847]
[1743177651393,7.6973,129.98,129.95,37.15591847]
[1743177651595,7.6973,129.98,129.96,7.6983]
[1743177651999,7.6978,129.97,129.95,37.15591847]
[1743177652497,0.05305695,129.99,129.95,29.45731847]
[1743177653798,7.74985695,129.99,129.96,7.6979]
[1743177654198,0.05305695,129.99,129.95,29.45731847]
[1743177654702,7.6974,129.98,129.95,37.15581847]
[1743177656205,0.05305695,129.99,129.95,29.45731847]
[1743177656802,7.6981,129.97,129.95,29.45731847]
[1743177658098,7.6983,129.96,129.95,29.45731847]
[1743177658912,7.6983,129.96,129.95,0.05731847]
[1743177660607,19.19169268,129.97,129.9,29.44]
[1743177661003,7.6984,129.96,129.93,12.28118686]
[1743177661210,12.28118686,129.96,129.93,29.42]
[1743177661406,12.28118686,129.95,129.93,29.42]
[1743177661607,7.6995,129.94,129.93,29.42]
[1743177661801,19.98068686,129.94,129.93,0.05577736]
[1743177662915,7.6995,129.94,129.93,0.05577736]
[1743177664811,26.89685382,129.94,129.93,7.736e-05]
[1743177665917,28.85825382,129.94,129.93,7.736e-05]
[1743177670027,7.7031,129.88,129.82,253.98]
[1743177670214,19.19735382,129.89,129.83,1.41079628]
[1743177670414,19.19735382,129.87,129.79,135.865074]
[1743177670614,7.7058,129.84,129.79,128.156874]
[1743177671125,34.1993,129.88,129.81,19.19735382]
[1743177671421,34.1993,129.88,129.81,0.05817678]
[1743177671611,7.7051,129.85,129.81,0.05817678]
[1743177671923,0.05090446,129.86,129.82,7.7063]
[1743177672221,7.75540446,129.86,129.82,37.9263]
[1743177672421,0.05090446,129.86,129.82,37.9263]
[1743177673014,19.24825828,129.86,129.81,0.05817678]
[1743177673413,7.7066,129.82,129.81,0.05817678]
[1743177673618,19.19735382,129.86,129.81,0.05817678]
[1743177673818,0.05340593,129.83,129.81,0.05817678]
[1743177674011,7.7057,129.84,129.81,0.05817678]
[1743177674215,34.1993,129.88,129.81,0.05817678]
[1743177674216,0.05622172,129.83,129.81,0.05817678]
[1743177674520,19.19735382,129.85,129.81,0.05817678]
[1743177674721,7.7066,129.82,129.81,0.05817678]
[1743177676025,19.24737576,129.83,129.75,30.46]
[1743177676220,19.19735382,129.83,129.76,7.7098]
[1743177676428,7.7075,129.81,129.75,49.65735382]
[1743177676615,49.63735382,129.85,129.75,49.65735382]
[1743177677224,0.05115243,129.81,129.79,0.04087932]
[1743177677626,7.7078,129.8,129.79,0.04087932]
[1743177683026,7.75855243,129.81,129.79,0.04087932]
[1743177683224,0.05115243,129.81,129.79,0.04087932]
[1743177683730,7.75845243,129.81,129.79,0.04087932]
[1743177684934,0.05115243,129.81,129.79,0.04087932]
[1743177686829,0.05115243,129.81,129.8,7.7078]
[1743177689125,0.05115243,129.81,129.79,7.74897932]
[1743177689330,0.05115243,129.81,129.79,0.04087932]
[1743177690041,7.7078,129.8,129.79,0.04087932]
[1743177690231,0.05115243,129.81,129.79,0.04087932]
[1743177690430,7.7078,129.8,129.79,0.04087932]
[1743177698543,26.90515382,129.8,129.79,7.932e-05]
[1743177698839,22.07975139,129.8,129.79,7.932e-05]
[1743177699245,22.07195139,129.8,129.69,1.34104046]
[1743177699436,22.07195139,129.8,129.64,85.43791601]
[1743177699437,7.7135,129.71,129.67,30.56]
[1743177699636,7.7135,129.71,129.68,12.31675139]
[1743177699847,7.7129,129.72,129.69,12.31675139]
[1743177700142,12.31675139,129.72,129.68,12.31675139]
[1743177700331,12.31675139,129.73,129.68,12.31675139]
[1743177700537,0.04922387,129.71,129.64,86.77926661]
[1743177700737,0.04922387,129.71,129.68,12.31675139]
[1743177700932,0.04922387,129.71,129.69,50.05657162]
[1743177701138,19.25657162,129.78,129.69,50.05657162]
[1743177701337,7.7099,129.77,129.71,19.25657162]
[1743177701542,7.7099,129.77,129.72,92.86]
[1743177701842,306.39177162,129.8,129.72,92.86]
[1743177702043,306.39177162,129.8,129.73,7.7115]
[1743177702444,0.04987934,129.78,129.75,0.0507323]
[1743177702747,7.7096,129.77,129.75,0.0507323]
[1743177703745,7.75907934,129.78,129.75,0.0507323]
[1743177704242,0.04987934,129.78,129.76,7.7099]
[1743177704446,0.04987934,129.78,129.75,50.18730392]
[1743177704647,7.7069,129.82,129.77,19.25657162]
[1743177704840,54.07277162,129.85,129.77,19.25657162]
[1743177705043,54.07277162,129.85,129.75,50.13657162]
[1743177705243,54.07277162,129.85,129.76,62.0]
[1743177705443,54.05277162,129.85,129.76,62.0]
[1743177705944,0.0550903,129.82,129.79,0.05147743]
[1743177706749,7.7620903,129.82,129.79,7.75977743]
[1743177707150,0.0550903,129.82,129.79,0.05147743]
[1743177707456,0.0550903,129.82,129.79,7.75987743]
[1743177707951,7.7621903,129.82,129.79,7.75987743]
[1743177708153,0.0550903,129.82,129.8,7.7076]
[1743177708351,0.0550903,129.82,129.79,0.05147743]
[1743177708553,0.0550903,129.82,129.79,19.30804905]
[1743177708748,0.0550903,129.82,129.8,7.7075]
[1743177709148,0.0550903,129.82,129.79,19.30804905]
[1743177709749,0.0550903,129.82,129.8,7.7074]
[1743177710046,0.0550903,129.82,129.81,30.76]
[1743177710250,7.7045,129.86,129.81,50.01657162]
[1743177710453,21.37697162,129.89,129.81,50.01657162]
[1743177711055,7.7043,129.86,129.83,7.7057]
[1743177711253,0.0487925,129.86,129.84,30.78]
[1743177711552,0.0487925,129.86,129.84,38.54034565]
[1743177711748,0.0487925,129.86,129.84,30.83524565]
[1743177713456,0.0487925,129.86,129.84,92.83524565]
[1743177715158,0.0487925,129.86,129.84,30.83524565]
[1743177715460,7.7533925,129.86,129.84,30.83524565]
[1743177716361,0.0487925,129.86,129.84,30.83524565]
[1743177717659,23.21757162,129.93,129.85,26.96107162]
[1743177718055,23.21757162,129.93,129.85,88.96107162]
[1743177718454,23.21757162,129.93,129.86,7.7041]
[1743177718660,0.05891446,129.9,129.88,0.05477199]
[1743177719749,0.05891446,129.9,129.88,7.75747199]
[1743177719959,0.05891446,129.9,129.88,0.05477199]
[1743177720858,7.7025,129.89,129.88,0.05477199]
[1743177722061,0.05891446,129.9,129.88,0.05477199]
[1743177722661,0.05891446,129.9,129.88,7.75747199]
[1743177722857,0.05891446,129.9,129.88,0.05477199]
[1743177723058,0.05891446,129.9,129.89,7.7025]
[1743177723453,2.0027,129.95,129.88,19.31134361]
[1743177723658,7.6998,129.94,129.9,7.7013]
[1743177723857,19.25657162,129.97,129.9,30.72]
[1743177724363,19.25657162,129.95,129.9,30.72]
[1743177724565,19.30598844,129.95,129.92,0.05262827]
[1743177725658,7.7001,129.93,129.92,0.05262827]
[1743177727666,3.9996,129.94,129.88,30.66]
[1743177727860,3.9996,129.94,129.88,38.3628]
[1743177728168,19.25657162,129.93,129.88,30.66]
[1743177728668,7.7021,129.9,129.89,0.05633696]
[1743177734566,0.0592853,129.92,129.85,261.8445]
[1743177734766,19.25657162,129.89,129.82,23.43307162]
[1743177734970,19.25657162,129.87,129.82,30.52]
[1743177735173,7.7051,129.85,129.82,38.2261]
[1743177735461,19.25657162,129.87,129.8,19.25657162]
[1743177735675,7.7064,129.83,129.8,38.2276]
[1743177735876,7.7064,129.83,129.82,0.05820882]
[1743177736879,0.05058082,129.85,129.82,0.05820882]
[1743177737280,19.25657162,129.91,129.84,19.25657162]
[1743177737476,7.7025,129.89,129.86,7.704]
[1743177737682,19.25657162,129.93,129.86,30.54]
[1743177737975,19.25657162,129.93,129.87,7.7033]
[1743177737976,7.702,129.9,129.87,7.7033]
[1743177738475,7.7026,129.89,129.87,0.05169366]
[1743177739873,7.7530369,129.9,129.87,7.75519366]
[1743177741086,7.7025,129.89,129.87,7.75519366]
[1743177741379,0.0509369,129.9,129.88,7.7025]
[1743177741583,0.0509369,129.9,129.87,0.05169366]
[1743177742082,0.0509369,129.9,129.88,7.7026]
[1743177742269,0.0509369,129.9,129.87,0.05169366]
[1743177742675,7.7028,129.89,129.87,0.05169366]
[1743177743381,7.7031,129.88,129.87,0.05169366]
[1743177744078,0.0509369,129.9,129.87,0.05169366]
[1743177744278,0.0509369,129.9,129.87,7.75499366]
[1743177744471,7.7531369,129.9,129.87,7.75499366]
[1743177744677,0.0509369,129.9,129.87,0.05169366]
[1743177744878,0.0509369,129.9,129.88,7.7027]
[1743177746577,0.0509369,129.9,129.89,7.7025]
[1743177747683,0.0509369,129.9,129.89,38.0025]
[1743177749087,0.0509369,129.9,129.89,30.3]
[1743177749587,0.0509369,129.9,129.89,38.0025]
[1743177750292,0.0509369,129.9,129.89,30.3]
[1743177750787,7.7528369,129.9,129.89,30.3]
[1743177753393,7.703,129.89,129.87,0.05169366]
[1743177753688,7.703,129.89,129.87,30.29169366]
[1743177753889,7.703,129.89,129.87,37.99519366]
[1743177754392,0.0509369,129.9,129.87,30.27169366]
[1743177755288,7.7027,129.89,129.87,30.27169366]
[1743177755989,7.7531369,129.9,129.87,30.27169366]
[1743177756192,0.0509369,129.9,129.87,30.27169366]
[1743177757494,7.7530369,129.9,129.87,37.97529366]
[1743177758196,7.7025,129.89,129.87,30.27169366]
[1743177758496,0.0509369,129.9,129.87,30.27169366]
[1743177758796,0.0509369,129.9,129.87,0.05169366]
[1743177758995,7.7031,129.88,129.87,0.05169366]
[1743177759494,7.7056,129.84,129.82,271.56573442]
[1743177759690,19.25657162,129.88,129.82,47.64573442]
[1743177760198,7.7057,129.84,129.83,30.18]
[1743177760398,19.25657162,129.86,129.82,17.50573442]
[1743177760897,0.05312594,129.85,129.83,0.0493411]
[1743177761298,7.7054,129.84,129.83,0.0493411]
[1743177762291,0.05312594,129.85,129.83,0.0493411]
[1743177762687,0.05312594,129.85,129.84,37.8454]
[1743177763290,0.05312594,129.85,129.84,30.14]
[1743177764405,0.05312594,129.85,129.84,37.8454]
[1743177765403,0.05312594,129.85,129.84,30.14]
[1743177766005,11.91923497,129.97,129.84,445.45314324]
[1743177766212,7.6993,129.95,129.88,19.25657162]
[1743177766413,7.6993,129.95,129.89,30.08]
[1743177766811,1.9998,129.97,129.89,30.08]
[1743177767113,1.9998,129.97,129.92,7.7004]
[1743177767314,0.05667063,129.94,129.92,0.04939294]
[1743177767515,0.05667063,129.94,129.92,30.12939294]
[1743177768610,21.32957162,130.0,129.92,49.38596456]
[1743177768809,2.073,130.0,129.92,49.33657162]
[1743177769412,9.7692,130.0,129.92,49.33657162]
[1743177769605,2.073,130.0,129.92,49.33657162]
[1743177769814,0.04909495,129.97,129.95,0.05809225]
[1743177770015,0.04909495,129.97,129.96,30.04]
[1743177777117,0.04909495,129.97,129.95,0.05809225]
[1743177777323,0.04909495,129.97,129.96,29.86]
[1743177778814,7.74679495,129.97,129.96,29.86]